{"text_format":"1","workbook":"xlsx","n_sheets":10,"sheets":["変更履歴","xml出力方法","【1.サービス特性設定（必須）】説明","【2.リスト(選択型)設定（任意）】説明","【3.従量課金（任意）】説明","【4.サブサービス（任意）】説明","【5.関連サービス（任意）】説明","【6.パラメータ（任意）】説明","【7.特性属性（任意）】説明","【入力チェックシート】説明"],"not_rendered":{"charts":0,"images":78,"macros":1,"external_links":0,"defined_names":0,"comments":0,"pivot_tables":0},"unopened":[],"bounds":{"document_bytes":16777216,"sheet_cells":100000,"rows_first":2000,"rows_last":500,"rows_between":2000,"halvings":0,"cell_chars":16384,"cell_head_chars":4096},"cells_cut":0,"cells_raw":0,"read":"whole","date_system":"1900"}

{"sheet":"変更履歴","index":0,"n_rows":31,"n_cols":5,"rows_kept":31,"cut":false,"hidden":false,"merged":[[24,2,29,2],[24,1,29,1],[28,3,29,3],[22,1,23,1],[14,1,18,1],[14,2,18,2],[12,1,13,1],[12,2,13,2],[3,1,7,1],[3,2,4,2],[5,2,6,2],[8,1,11,1],[8,2,11,2]]}
["<変更履歴>"]
[]
[null,"Ver","更新日","更新シート","更新内容"]
[null,1.4,"2021-03-09","【★設定シート1】説明","キャプチャを最新のヒアリングシートに差し替え\n\n以下の項目を追加\n・画面で非表示\n・初期値で固定\n・プロビ中の値の変更\n・検索可否"]
[null,null,null,"サービス特性設定","図の凡例を追加\n\n以下の説明を追加\n・画面で非表示\n・初期値で固定\n・プロビ中の値の変更\n・検索可否"]
[null,null,"2021-03-17","【★設定シート1】説明","以下の項目を追加\n・サービス廃止日"]
[null,null,null,"サービス設定","以下の説明を追加\n・サービス廃止日"]
[null,null,"2021-04-02","【★設定シート1】説明","サービスキャラクタリスティックス設定の「オーダ未完了時に非表示」項目の名称を変更\n・変更前→オーダ未完了時の表示\n・変更後→画面で非表示\n\nサービスキャラクタリスティックス設定の「初期表示」項目の名称を変更\n・変更前→初期表示\n・変更後→申込時の初期表示\n\nサービスキャラクタリスティクス設定の文言を変更\n・変更前→サービスキャラクタリスティックス設定\n・変更後→サービス特性設定"]
[null,"1.1.2","2021-04-27","【★設定シート1】説明","以下の項目を追加\n・有効な状態での編集可否"]
[null,null,null,"サービス特性設定","以下の説明を追加\n・有効な状態での編集可否"]
[null,null,null,"xml作成方法","シートを追加"]
[null,null,null,null,"ヒアリングシートに合わせてバージョンを変更"]
[null,"1.1.2","2021-05-26","【★設定シート1】説明","以下の項目の備考にサービス変更時の注意書きを追加\n・特性の必須・任意\n・変更申込での追加・削除\n・有効な状態での編集可否\n・設定上限"]
[null,null,null,"【★設定シート2】説明","以下の項目の備考にサービス変更時の注意書きを追加\n・キー情報"]
[null,1.2,"2021-06-03","【★設定シート1】説明","コピー機能に関する以下の項目を削除\n・キー情報\n・表示名\n・コピー先/コピー元\n・コピー機能使用\n\nサービス特性設定の「特性の必須・任意」項目の名称を変更\n・変更後→必須\n\nサービス特性設定の「申込時の初期表示」項目の名称を変更\n・変更後→初期表示あり\n\nサービス特性設定の「変更申込での追加削除」項目の名称を変更\n・変更後→変更申込にて追加または削除が可能\n\nサービス特性設定の「有効な状態での編集可否」項目の名称を変更\n・変更後→有効な状態での変更が可能"]
[null,null,null,"【★設定シート3】説明","シートを追加"]
[null,null,null,"【★設定シート5】説明","シートを追加"]
[null,null,null,"コピー機能設定","シートを削除"]
[null,null,null,"表示名・入力規則\nデフォルト設定値\n表示名-デフォルト設定値","「表示名・入力規則」シートと「デフォルト設定値」シートを統合し、「表示名-デフォルト設定値」シートに変更"]
[null,1.3,"2021-07-02",null,"設定補助シートの改修に合わせて、本ブックを大幅に変更"]
[null,"1.3.1","2021-08-27","【1.サービス特性設定（必須）】説明","下記の項目を追加\n・サービス属性キー情報\n・サービス属性設定値\n・サービス属性適用開始日\n・サービス属性適用終了日\n・特性属性\n\n入力の必須任意 特性の必須任意の備考欄に以下の文言を追加\n・入力形式がリスト（選択型）の特性の場合は、\n 入力任意でも入力が必須となる（エラーメッセージは出ない）"]
[null,"1.3.1","2021-08-27","【6.パラメータ（任意）】説明\n【7.特性属性（任意）】説明","【6.パラメータ（任意）】説明シートを追加\n【7.特性属性（任意）】説明シートを追加"]
[null,"1.3.2","2021-09-30","【1.サービス特性設定（必須）】説明","グループ識別子の説明を追加"]
[null,null,"2021-10-07","【5.関連サービス（任意）】説明","提供キー情報の説明を追加"]
[null,"1.3.3","2022-07-25","全シート","設定補助シートへのリンクボタンの追加"]
[null,null,null,"【1.サービス特性設定（必須）】説明","下記項目に補足を追加\n・「サービスキー情報」の「備考」\n・「サービス説明」の「備考」\n・「サービス属性設定」の「備考」\n・「特性キー情報」の「備考」\n・「特性説明」の「備考」\n・「検索可否」の「設定値」、「備考」\n・「入力チェック」の「備考」\n・「入力チェックエラーメッセージ」の「備考」\n\n下記に詳細説明を追加\n・「サービスキー情報」の詳細説明部分\n・「検索可否」の詳細説明部分\n・「入力チェック」と「入力チェックエラーメッセージ」の詳細説明部分\n・「読取/書込」～「特性属性」の詳細説明部分"]
[null,null,null,"【5.関連サービス（任意）】説明","「関連サービスとしての役割」の「備考」に補足を追加"]
[null,null,null,"【6.パラメータ（任意）】説明","■パラメータの設定 部分に説明を追記"]
[null,null,null,"【7.特性属性（任意）】説明","■特性属性の設定 部分に説明を追記"]
[null,null,null,null,"「特性属性設定値」の「備考」に補足を追加"]
[null,"1.3.4","2022-10-17","【1.サービス特性設定（必須）】説明","「入力の必須任意、特性の必須任意」項目に以下の選択肢を追加\n・入力必須(特性任意(初期表示あり))\n・入力必須(特性任意(初期表示なし))"]

{"sheet":"xml出力方法","index":1,"n_rows":64,"n_cols":2,"rows_kept":64,"cut":false,"hidden":false,"merged":[]}
["■xml出力"]
["手順①","xml出力ボタンを押下"]
[]
[]
[]
[]
[]
[]
[]
[]
[]
[]
[]
[]
[]
[]
[]
[]
[]
[]
[]
[]
[]
[]
[]
[]
["手順②","ファイル名を入力し、ファイルの種類をxmlファイル(*.xml)にして、保存ボタンを押下"]
[]
[]
[]
[]
[]
[]
[]
[]
[]
[]
[]
[]
[]
[]
[]
[]
[]
[]
[]
[]
[]
[]
[]
[]
[]
[]
[]
[]
[]
[]
[]
[]
["※既に同名のファイルが存在する場合はここで注意書きが表示されます"]
[]
[]
[]
["手順③","出力完了"]

{"sheet":"【1.サービス特性設定（必須）】説明","index":2,"n_rows":903,"n_cols":4,"rows_kept":903,"cut":false,"hidden":false,"merged":[]}
["■設定補助シート"]
[]
[]
[]
[]
[]
[]
[]
[]
[]
[]
[]
[]
[]
[]
[]
[]
[]
[]
[]
[]
[]
[]
[]
[]
[]
[]
[]
[]
[]
[]
["■説明"]
["ヘッダー名（UIで表示されるモノは参考リンクあり）","概要","設定値","備考"]
[{"$f":"HYPERLINK(\"#A\"&ROW($A$69),SUBSTITUTE($A67,\"■\",\"\"))","v":"サービス表示名"},"UI上で表示されるサービスの名称","文字、数字、記号","例）「契約サービス」"]
[{"$f":"HYPERLINK(\"#A\"&ROW($A$69),SUBSTITUTE($A68,\"■\",\"\"))","v":"サービスキー情報"},"サービスを指すキー","半角英数字、ハイフン、アンダーバー","例）「contractService」\nUI上で表示される\nテナント内で一意であること\n※商品が複数のサービスで構成される場合、サービスはここの値の昇順で表示される"]
["サービス説明","UI上で表示されるサービスの説明","文字、数字、記号","例）「契約サービス（サンプル）」\n※太字にしたり色を付けたりなどの強調表示は不可。"]
[{"$f":"HYPERLINK(\"#A\"&ROW($A$127),SUBSTITUTE($A127,\"■\",\"\"))","v":"サービス有効開始日"},"サービスが有効化される日付","yyyy-mm-dd","例）「2021-01-01」\nサービスの開始日が未来の商品については未来の日付を設定\n\n【設定者向け】\nUIとxmlで日付が異なる場合、\nより未来の日付が優先され設定される\n※UI上でxmlアップロード時、「適用開始日」としてデフォルトで今日日付が設定されているが、xmlで未来日を設定している場合はUI上の「適用開始日」が今日日付のままでも問題ない。(より未来日である、xmlの日付が適用される)"]
[{"$f":"HYPERLINK(\"#A\"&ROW($A$150),SUBSTITUTE($A150,\"■\",\"\"))","v":"サービス廃止日"},"サービスを廃止する日付","yyyy-mm-dd","例）「2030-12-31」\n提供期間が決まっているサービスについては日付を設定する\nここで設定した日付になると、自動でサービスが廃止される"]
[{"$f":"HYPERLINK(\"#A\"&ROW($A$166),SUBSTITUTE($A166,\"■\",\"\"))","v":"プロビジョニング種別"},"プロビジョニングのアクション種別","即時完了\nタスク\n他システム連携","例）「タスク」"]
["ターゲットシステム","連携するシステムのURL","連携システムのURLを指す名称","事前準備としてAPIを使って対象システムのURLを登録し、\n名称を設定する必要あり"]
["リソースパス","連携するシステムのエンドポイント","連携システムのURLに続くエンドポイント"]
["サービス属性キー情報","サービス属性を指すキー","半角英数字、ハイフン、アンダーバー","例）「targetId」\n事前にテナントに設定したキーのみが使用可能"]
["サービス属性設定値","サービス属性に設定する値","文字、数字、記号","例）「123456789」\nUI上には表示されない\n属性値として設定だけするものであり、ProductOrderingのAPI等にて利用される\nサービス特性への属性は「7.特性属性（任意）」シートで設定"]
["サービス属性適用開始日","サービス属性の適用が開始される日付","yyyy-mm-dd","未入力の場合は、サービスアップロードと同時に適用される"]
["サービス属性適用終了日","サービス属性の適用が終了される日付","yyyy-mm-dd","未入力の場合は設定なし"]
[{"$f":"HYPERLINK(\"#A\"&ROW($A$196),SUBSTITUTE($A194,\"■\",\"\"))","v":"表示順"},"UI上で表示される特性の表示順","数字","例）「1」"]
[{"$f":"HYPERLINK(\"#A\"&ROW($A$196),SUBSTITUTE($A195,\"■\",\"\"))","v":"特性表示名"},"UI上で表示されるの特性の名称","文字、数字、記号","例）「契約番号」"]
["特性キー情報","特性を指すキー","半角英数字、ハイフン、アンダーバー","例）「bpNumber」\nサービス内で一意であること\n\n※\"サービスキー情報\"に値を入力してうえで、「自動生成」ボタンを押下する必要がある。\n※「自動生成」ボタンを押した場合、\"特性表示名\"に値が入っている空白セルについて\"サービスキー情報+表示順(0埋め3桁）\"で自動付与される\n（\"サービスキー情報\"が設定されていない場合、表示順(0埋め3桁）のみが付与される）"]
[{"$f":"HYPERLINK(\"#A\"&ROW($A$196),SUBSTITUTE($A196,\"■\",\"\"))","v":"特性説明"},"UI上で表示される特性の説明","文字、数字、記号","例）「ご利用端末の型番（機種名ではありません）」\n\n※太字にしたり改行したりなどの強調表示は不可。"]
[{"$f":"HYPERLINK(\"#A\"&ROW($A$245),SUBSTITUTE($A245,\"■\",\"\"))","v":"入力形式"},"特性の要素に入力する値の入力形式","文字列\n数値\n日付\n真偽値\nリスト（選択型）\nリスト（入力型）\n住所\n入力なし","リスト（選択型）の特性は20個まで設定可能"]
[{"$f":"HYPERLINK(\"#A\"&ROW($A$421),SUBSTITUTE($A421,\"■\",\"\"))","v":"入力の必須任意 特性の必須任意"},"特性自体の必須任意 要素の入力の必須任意","入力必須(特性必須)：入力必須かつ特性の削除不可\n入力必須(特性任意(初期表示あり))：\n　　　　 入力必須かつ特性の削除可かつ初期表示あり\n入力必須(特性任意(初期表示なし))：\n　　　　 入力必須かつ特性の削除可かつ初期表示なし\n入力任意(特性必須)：入力任意かつ特性の削除可\n入力任意(特性任意(初期表示あり))：\n　　　　入力任意かつ特性の削除可かつ初期表示あり\n入力任意(特性任意(初期表示なし))：\n　　　　入力任意かつ特性の削除可かつ初期表示なし\n非表示：UI上で表示されない","入力必須の特性が購入画面で未入力の場合、\nエラーメッセージが表示される\n特性必須の特性は購入画面で、\n「削除ボタン(ゴミ箱マーク)」が表示されない\n初期表示なしの特性は購入画面では画面左側の一覧から、\n「追加ボタン（＋マーク）」を押下で追加される\n入力形式がリスト（選択型）の特性の場合は、\n入力任意でも入力が必須となる（エラーメッセージは出ない）\n作成済みサービスを変更する際の注意事項\n・(特性任意)から(特性必須)に変更する場合は、\n　このサービスを含んだ卸商品と小売商品にも変更が反映される\n・(特性必須)から(特性任意)に変更する場合は、\n　このサービスを含んだ卸商品と小売商品にも変更が反映されないため、\n　卸商品と小売商品も変更したい場合は別途操作が必要"]
[{"$f":"HYPERLINK(\"#A\"&ROW($A$507),SUBSTITUTE($A502,\"■\",\"\"))","v":"入力チェック"},"特性の要素に入力する値の入力規則","半角文字\n全角文字\n全角カナ\n半角数字\n半角英字\n半角英数\n半角英数記号\n半角文字（桁制限あり）\n全角文字（桁制限あり）\n全角カナ（桁制限あり）\n半角数字（桁制限あり）\n半角英字（桁制限あり）\n半角英数（桁制限あり）\n半角英数記号（桁制限あり）\n郵便番号（ハイフンあり）\n郵便番号（ハイフンなし）\neメールアドレス","選択した形式の入力のみを受け付ける\n桁制限ありの項目を選択する場合は桁数チェックも入力が必要\n任意の正規表現を追加可能\n\n※このチェックは標準入力チェック（入力形式に設定された型のチェック）をした後に行われる\nそのため、「入力形式」に「数値」を設定したが入力画面で文字列が入力された場合、標準入力チェックが先にされるためこの入力チェックは実行されない"]
[{"$f":"HYPERLINK(\"#A\"&ROW($A$507),SUBSTITUTE($A503,\"■\",\"\"))","v":"桁数チェック（下限）"},"特性の要素に入力する値の桁数の下限","数字","例）「8」\n入力チェックで「桁数制限あり」の項目を選択した場合に使用する\n未入力の場合はxmlでは1が入力されて、下限は1に設定される"]
["桁数チェック（上限）","特性の要素に入力する値の桁数の上限","数字","例）「8」\n入力チェックで「桁数制限あり」の項目を選択した場合に使用する\n未入力の場合はxmlでは空欄になり、上限は設定なしとなる"]
["入力チェックエラーメッセージ","特性の要素が入力チェックに違反した際にUIに表示されるエラーメッセージ","文字、数字、記号","例）「半角数字8桁で入力してください」\n※「入力チェック」と同じく、先に標準入力チェック（入力形式に設定された型のチェック）が実行されエラーになった場合、Infonova標準のエラーメッセージが表示されるためこのメッセージは表示されない"]
["初期値","購入画面にて特性の要素に最初から入力されている値","文字列：文字、数字、記号\n数値：数字\n日付：使用不可\n真偽値：TRUE/FALSE\nリスト（選択型）：半角英数字、ハイフン、アンダーバー\nリスト（入力型）：文字、数字、記号\n住所：使用不可\n入力なし：使用不可","例）\n文字列：「なし」\n数値：「1」\nリスト（選択型）：「basicKind1」\nリスト（入力型）：「ABC123,XYZ789」\n真偽値：「TRUE」\n\nリスト（選択型）で初期値を設定する場合は、\n設定したい選択項目の項目キー情報を記入する"]
[{"$f":"HYPERLINK(\"#A\"&ROW($A$507),SUBSTITUTE($A507,\"■\",\"\"))","v":"読取/書込"},"操作者による特性の要素への入力の可不可","書込可能：購入画面にて入力欄が表示される\n読取専用：購入画面にて入力欄が表示されない","読取専用でも、関連サービスによる提供で要素を間接的に入力することが可能"]
[{"$f":"HYPERLINK(\"#A\"&ROW($A$569),SUBSTITUTE($A569,\"■\",\"\"))","v":"検索可否"},"特性の要素を使った検索の可不可","検索可：特性に入力した要素が顧客検索画面からの検索でヒットする\n検索不可：特性に入力した要素が顧客検索画面からの検索でヒットしない","全ての特性を検索可とすると処理が重くなるため、検索可とする特性を絞ること\n※日付型の場合、検索方法に注意事項あり"]
[{"$f":"HYPERLINK(\"#A\"&ROW($A$629),SUBSTITUTE($A629,\"■\",\"\"))","v":"プロビ中の変更"},"プロビジョニング中の特性の要素変更の可不可","変更可：プロビジョニング中に特性の要素を変更できる\n変更不可：プロビジョニング中に特性の要素を変更できない"]
[{"$f":"HYPERLINK(\"#A\"&ROW($A$682),SUBSTITUTE($A682,\"■\",\"\"))","v":"変更申込時 項目の追加・削除"},"変更申込における特性の追加・削除の可不可","追加/削除可：変更申込にて特性を追加または削除できる\n追加/削除不可：変更申込にて特性を追加または削除できない","追加/削除可の特性は購入画面で特性の横に、\n「追加ボタン(+マーク)」と「削除ボタン(ゴミ箱マーク)」が表示される\n作成済みサービスを変更する際の注意事項\n・追加/削除可から追加/削除不可に変更する場合は、\n　このサービスを含んだ卸商品と小売商品にも変更が反映される\n・追加/削除不可から追加/削除可に変更する場合は、\n　このサービスを含んだ卸商品と小売商品にも変更が反映されないため、\n　卸商品と小売商品も変更したい場合は別途操作が必要"]
[{"$f":"HYPERLINK(\"#A\"&ROW($A$733),SUBSTITUTE($A733,\"■\",\"\"))","v":"変更申込時 項目の内容変更"},"変更申込における要素の変更の可不可","変更可：変更申込にて特性の要素を変更できる\n変更不可：変更申込にて特性の要素を変更できない","作成済みサービスを変更する際の注意事項\n・変更可から変更不可に変更する場合は、\n　このサービスを含んだ卸商品と小売商品にも変更が反映される\n・変更不可から変更可に変更する場合は、\n　このサービスを含んだ卸商品と小売商品にも変更が反映されないため、\n　卸商品と小売商品も変更したい場合は別途操作が必要"]
[{"$f":"HYPERLINK(\"#A\"&ROW($A$766),SUBSTITUTE($A766,\"■\",\"\"))","v":"グループ識別子"},"特性の値のグループ識別子としての使用の可否","識別子にする：特性の要素をグループ識別子にする\n識別子にしない：特性の要素をグループ識別子にしない","「識別子にする」の特性を持つ同一のサービスが注文に2つ以上含まれている場合、その特性の値によってプロビジョニングタスクがグループ分けされる\n「識別子にしない」の特性だけで構成されるサービスは、内容にかかわらず1つのプロビジョニングタスクになる\nグループ識別子を使用する際の注意点\n・「識別子にする」を選択できるのは1サービスにつき1つの特性\n・「識別子にする」の特性を含むことができるのは1商品につき1種類のサービス"]
[{"$f":"HYPERLINK(\"#A\"&ROW($A$874),SUBSTITUTE($A874,\"■\",\"\"))","v":"サービス識別子"},"購入済み商品に含まれるサービスの識別子としての要素の使用の可否","識別子にする：特性の要素をサービスの識別子にする\n識別子にしない：特性の要素をサービスの識別子にしない","識別子にできるのは同一サービス内で1つの特性のみ\nシステム内で重複する可能性のある要素は識別子にしないこと\n（識別子が重複するサービスはプロビジョニングが完了できない）"]
[{"$f":"HYPERLINK(\"#A\"&ROW($A$901),SUBSTITUTE($A901,\"■\",\"\"))","v":"設定上限"},"購入画面にて追加できる特性の上限数","数字","作成済みサービスを変更する際の注意事項\n・上限を下げる場合は、\n　このサービスを含んだ卸商品と小売商品にも変更が反映される\n・上限を上げる場合は、\n　このサービスを含んだ卸商品と小売商品にも変更が反映されないため、\n　卸商品と小売商品も変更したい場合は別途操作が必要"]
["特性属性","特性属性の使用有無","あり：特性属性の使用あり\nなし：特性属性を使用なし","「あり」を選択した場合は、\n7.特性属性（任意）シートで属性の設定が必要"]
[]
["■サービス表示名"]
["■サービスキー情報"]
["■サービス説明",{"$f":"HYPERLINK(\"#A\"&ROW($A$32),\"戻る\")","v":"戻る"}]
[]
[]
[]
[]
[]
[]
[]
[]
[]
[]
[]
[]
[]
[]
[]
[]
[]
[]
[]
[]
[]
[]
[]
[]
[]
["★サービスの並び順について"]
["以下のようなサービスキーが設定されている3サービスを含んだ商品の場合、画面ではサービスキーの昇順で表示される。"]
[]
[]
[]
[]
[]
[]
[]
[]
[]
[]
[]
[]
[]
[]
[]
[]
[]
[]
[]
[]
[]
[]
[]
[]
[]
[]
[]
[]
[]
[]
["■サービス有効開始日",{"$f":"HYPERLINK(\"#A\"&ROW($A$32),\"戻る\")","v":"戻る"}]
[]
[]
[]
[]
[]
[]
[]
[]
[]
[]
[]
[]
[]
[]
[]
[]
[]
[]
[]
[]
[]
[]
["■サービス廃止日",{"$f":"HYPERLINK(\"#A\"&ROW($A$32),\"戻る\")","v":"戻る"}]
[]
[]
[]
[]
[]
[]
[]
[]
[]
[]
[]
[]
[]
[]
[]
["■プロビジョニング種別",{"$f":"HYPERLINK(\"#A\"&ROW($A$32),\"戻る\")","v":"戻る"}]
[]
[]
[]
[]
[]
[]
[]
[]
[]
[]
[]
[]
[]
[]
[]
[]
[]
[]
[]
[]
[]
[]
[]
[]
[]
[]
[]
["■表示順"]
["■特性表示名"]
["■特性説明",{"$f":"HYPERLINK(\"#A\"&ROW($A$32),\"戻る\")","v":"戻る"}]
[]
[]
[]
[]
[]
[]
[]
[]
[]
[]
[]
[]
[]
[]
[]
[]
[]
[]
[]
[]
[]
[]
[]
[]
[]
[]
[]
[]
[]
[]
[]
[]
[]
[]
[]
[]
[]
[]
[]
[]
[]
[]
[]
[]
[]
[]
[]
[]
["■入力形式",{"$f":"HYPERLINK(\"#A\"&ROW($A$32),\"戻る\")","v":"戻る"}]
[]
[]
[]
[]
[]
[]
[]
[]
[]
[]
[]
[]
[]
[]
[]
[]
[]
[]
[]
[]
[]
[]
[]
[]
[]
[]
[]
[]
[]
[]
[]
[]
[]
[]
[]
[]
[]
[]
[]
[]
[]
[]
[]
[]
[]
[]
[]
[]
[]
[]
[]
[]
[]
[]
[]
[]
[]
[]
[]
[]
[]
[]
[]
[]
[]
[]
[]
[]
[]
[]
[]
[]
[]
[]
[]
[]
[]
[]
[]
[]
[]
[]
[]
[]
[]
[]
[]
[]
[]
[]
[]
[]
[]
[]
[]
[]
[]
[]
[]
[]
[]
[]
[]
[]
[]
[]
[]
[]
[]
[]
[]
[]
[]
[]
[]
[]
[]
[]
[]
[]
[]
[]
[]
[]
[]
[]
[]
[]
[]
[]
[]
[]
[]
[]
[]
[]
[]
[]
[]
[]
[]
[]
[]
[]
[]
[]
[]
[]
[]
[]
[]
[]
[]
[]
[]
[]
[]
[]
[]
[]
[]
[]
[]
[]
[]
[]
[]
[]
[]
[]
[]
[]
[]
[]
[]
["■入力の必須任意 特性の必須任意",{"$f":"HYPERLINK(\"#A\"&ROW($A$32),\"戻る\")","v":"戻る"}]
[]
[]
[]
[]
[]
[]
[]
[]
[]
[]
[]
[]
[]
[]
[]
[]
[]
[]
[]
[]
[]
[]
[]
[]
[]
[]
[]
[]
[]
[]
[]
[]
[]
[]
[]
[]
[]
[]
[]
[]
[]
[]
[]
[]
[]
[]
[]
[]
[]
[]
[]
[]
[]
[]
[]
[]
[]
[]
[]
[]
[]
[]
[]
[]
[]
[]
[]
[]
[]
[]
[]
[]
[]
[]
[]
[]
[]
[]
[]
[]
["■入力チェック"]
["■桁数チェック（下限）"]
["■桁数チェック（上限）"]
["■入力チェックエラーメッセージ"]
["■初期値"]
["■読取/書込",{"$f":"HYPERLINK(\"#A\"&ROW($A$32),\"戻る\")","v":"戻る"}]
[]
[]
[]
[]
[]
[]
[]
[]
[]
[]
[]
[]
[]
[]
[]
[]
[]
[]
[]
[]
[]
[]
[]
[]
[]
[]
[]
[]
[]
[]
[]
[]
[]
[]
[]
[]
[]
[]
[]
[]
[]
[]
[]
["※標準入力チェック（入力形式に設定された型のチェック）と設定した入力チェックのチェックされる順番について"]
["標準入力チェック（入力形式に設定された型のチェック）が先に実行され、そのあとに設定した入力チェックが実行される。"]
[]
["（例） 以下の設定になっている「数値型」のサービス特性の場合"]
[]
[]
[]
[]
["①サービス特性に「文字型」を入力すると、先に標準入力チェック（入力形式に設定された型のチェック）がされるため、以下のエラーとなる（標準のエラーメッセージ表示（こちらは変更できません））"]
[]
[]
[]
[]
["②サービス特性に「数値」を入力すると、標準入力チェック（入力形式に設定された型のチェック）は通り、設定した入力チェックがされるため以下のエラーとなる（入力チェックエラーメッセージに設定したメッセージ表示）"]
[]
[]
[]
[]
["■検索可否",{"$f":"HYPERLINK(\"#A\"&ROW($A$32),\"戻る\")","v":"戻る"}]
[]
[]
[]
[]
[]
[]
[]
[]
[]
[]
[]
[]
[]
[]
[]
[]
[]
[]
[]
["※日付型のサービス特性について"]
["日付型のサービス特性についは「検索可」で使用しないでください。"]
["パッケージのグローバルタイムゾーンの影響を受け、テナントタイムゾーンがJPの場合、想定外の挙動をします。（設定した日付の前日で検索する必要がある　など）"]
[]
["(例）"]
["使用開始日を「2022/07/01」に設定している場合"]
[]
[]
[]
[]
[]
[]
[]
[]
[]
[]
["上記の場合、設定した日付の前日で検索する必要があります。"]
[]
[]
[]
[]
[]
[]
["日付系の項目を検索対象としたい場合は、対象サービス特性を「文字型」にしてください。"]
["① 対象サービス特性を「文字型」にする"]
[]
[]
[]
[]
[]
[]
["②入力した値で検索"]
["※記号によってはバックスラッシュが必要になります。（バックスラッシュ対象の記号：& ! ( ) { } [ ] ^ \" ~ * ? : \\ /）"]
[]
[]
[]
[]
[]
[]
[]
["■プロビ中の変更",{"$f":"HYPERLINK(\"#A\"&ROW($A$32),\"戻る\")","v":"戻る"}]
["使用例）"]
["契約内容や連携先のシステムの都合で、プロビジョニング中（商品追加から完了まで）に特性値の変更を制御したい場合、「変更可」を設定する（変更申込ができる）"]
[]
["「サービス利用開始待ち」の場合でも、「設定」が活性となり変更申込ができる（一つでも「変更可」の特性があれば変更申込が可能）"]
[]
[]
[]
[]
[]
[]
[]
[]
[]
[]
[]
[]
[]
[]
[]
[]
[]
[]
[]
[]
[]
[]
[]
[]
[]
[]
[]
[]
[]
[]
[]
[]
[]
[]
[]
[]
[]
[]
[]
[]
[]
[]
[]
[]
[]
[]
[]
[]
["■変更申込時 項目の追加・削除",{"$f":"HYPERLINK(\"#A\"&ROW($A$32),\"戻る\")","v":"戻る"}]
["使用例）"]
["商品提供後の変更申込時に特性を追加/削除したい場合は、「追加/削除可」を設定する"]
["基本的には「追加/削除可」を設定する事。新規申込から項目の変更を行いたくない場合（他シスの連携項目となっている場合など）は不可を設定する"]
[]
[]
[]
[]
[]
[]
[]
[]
[]
[]
[]
[]
[]
[]
[]
[]
[]
[]
[]
[]
[]
[]
[]
[]
[]
[]
[]
[]
[]
[]
[]
[]
[]
[]
[]
[]
[]
[]
[]
[]
[]
[]
[]
[]
[]
[]
[]
["■変更申込時 項目の内容変更",{"$f":"HYPERLINK(\"#A\"&ROW($A$32),\"戻る\")","v":"戻る"}]
["使用例）\n\n"]
["商品提供後の変更申込時に特性の値を変更する場合は、「変更可」を設定する"]
["新規契約時に回線数を5で申込、その後追加で3回線契約したい場合、5→8に変更可能となる。"]
["基本的には「変更可」を設定する事。初期申込時の内容から内容を変更したくない場合（他シスの連携項目となっている場合など）は、不可を設定する"]
[]
[]
[]
[]
[]
[]
[]
[]
[]
[]
[]
[]
[]
[]
[]
[]
[]
[]
[]
[]
[]
[]
[]
[]
[]
[]
[]
[]
["■グループ識別子",{"$f":"HYPERLINK(\"#A\"&ROW($A$32),\"戻る\")","v":"戻る"}]
[]
[]
[]
[]
[]
[]
[]
[]
[]
[]
[]
[]
[]
[]
[]
[]
[]
[]
[]
[]
[]
[]
[]
[]
[]
[]
[]
[]
[]
[]
[]
[]
[]
[]
[]
[]
[]
[]
[]
[]
[]
[]
[]
[]
[]
[]
[]
[]
[]
[]
[]
[]
[]
[]
[]
[]
[]
[]
[]
[]
[]
[]
[]
[]
[]
[]
[]
[]
[]
[]
[]
[]
[]
[]
[]
[]
[]
[]
[]
[]
[]
[]
[]
[]
[]
[]
[]
[]
[]
[]
[]
[]
[]
[]
[]
[]
[]
[]
[]
[]
[]
[]
[]
[]
[]
[]
[]
["■サービス識別子",{"$f":"HYPERLINK(\"#A\"&ROW($A$32),\"戻る\")","v":"戻る"}]
["使用例）"]
["特定のシリアル番号をサービス識別子として設定したい場合に、「識別子にする」を設定する"]
[]
[]
[]
[]
[]
[]
[]
[]
[]
[]
[]
[]
[]
[]
[]
[]
[]
[]
[]
[]
[]
[]
[]
[]
["■設定上限",{"$f":"HYPERLINK(\"#A\"&ROW($A$32),\"戻る\")","v":"戻る"}]
["使用例）"]
["同一特性の設定数がオーダや顧客ごとに異なる可能性がある場合に上限を設定する"]

{"sheet":"【2.リスト(選択型)設定（任意）】説明","index":3,"n_rows":79,"n_cols":4,"rows_kept":79,"cut":false,"hidden":false,"merged":[]}
["■リスト（選択型）の設定"]
["入力形式でリスト（選択型）を選択した特性については、選択項目と選択項目ごとのキーを設定する必要がある"]
["それらの設定は2.リスト(選択型)設定（任意）にて行う"]
[]
["■設定補助シート"]
[]
[]
[]
[]
[]
[]
[]
[]
[]
[]
[]
[]
[]
[]
[]
[]
[]
[]
[]
["■説明"]
["ヘッダー名（UIで表示されるモノは参考リンクあり）","概要","設定値","備考"]
["特性キー情報（n）","1.サービス特性設定（必須）から自動で転記される特性キー情報","1.サービス特性設定（必須）から自動転記"]
["項目キー情報","選択項目を指すキー","半角英数字、ハイフン、アンダーバー","例）「basickind1」\n同一サービス内での重複は不可\n作成済みサービスを変更する際の注意事項\n・選択項目を削除する場合、\n　このサービスを含んだ卸商品と小売商品にも変更が反映される\n・選択項目を追加する場合、\n　このサービスを含んだ卸商品と小売商品には変更が反映されないため、\n　卸商品と小売商品も変更したい場合は別途操作が必要"]
[{"$f":"HYPERLINK(\"#A\"&ROW($A$34),SUBSTITUTE($A33,\"■\",\"\"))","v":"表示名"},"UI上で表示される選択項目の名称","文字、数字、記号","例）「区分1」"]
[{"$f":"HYPERLINK(\"#A\"&ROW($A$34),SUBSTITUTE($A34,\"■\",\"\"))","v":"表示順"},"UI上で表示される選択項目の表示順","数字","例）「1」"]
[{"$f":"HYPERLINK(\"#A\"&ROW($A$79),SUBSTITUTE($A79,\"■\",\"\"))","v":"項目説明"},"UI上で表示される選択項目の説明","文字、数字、記号","例）「区分1」"]
[]
["■表示名"]
["■表示順",{"$f":"HYPERLINK(\"#A\"&ROW($A$25),\"戻る\")","v":"戻る"}]
[]
[]
[]
[]
[]
[]
[]
[]
[]
[]
[]
[]
[]
[]
[]
[]
[]
[]
[]
[]
[]
[]
[]
[]
[]
[]
[]
[]
[]
[]
[]
[]
[]
[]
[]
[]
[]
[]
[]
[]
[]
[]
[]
[]
["■項目説明",{"$f":"HYPERLINK(\"#A\"&ROW($A$25),\"戻る\")","v":"戻る"}]

{"sheet":"【3.従量課金（任意）】説明","index":4,"n_rows":24,"n_cols":4,"rows_kept":24,"cut":false,"hidden":false,"merged":[]}
["■従量課金の設定"]
["バイト数、時間などの使用量に応じて課金を設定することができる"]
["従量課金の計算に必要な使用量はAPIによって登録する必要がある"]
["このシートでは従量課金を登録するためのキーを設定する"]
[]
["■設定補助シート"]
[]
[]
[]
[]
[]
[]
[]
[]
[]
[]
[]
[]
["■説明"]
["ヘッダー名","概要","設定値","備考"]
["フィードキー情報（n）","mediationFeedを指すキー","半角英数字、ハイフン、アンダーバー","例）「csFeed1」\n従量課金を発生させるにはAPIから登録する必要があり、\nその際に指定するキーとして使われます"]
["フィード説明","mediationFeedの説明","文字、数字、記号","xml上でのみ確認が可能"]
["イベントキー情報","mediationEventを指すキー","半角英数字、ハイフン、アンダーバー","例）「csFeedEvent1_1]\n従量課金を発生させるにはAPIから登録する必要があり、\nその際に指定するキーとして使われます"]
["イベント説明","mediationEventの説明","文字、数字、記号","xml上でのみ確認が可能"]

{"sheet":"【4.サブサービス（任意）】説明","index":5,"n_rows":120,"n_cols":4,"rows_kept":120,"cut":false,"hidden":false,"merged":[]}
["■サブサービスの設定"]
["サービスに紐づける「子サービス」のこと"]
["子サービスと言っても作成方法は通常のサービスと同じで、"]
["他のサービスに紐づけることで子サービスと呼ぶ"]
["それらの設定は4.サブサービス（任意）にて行う"]
[]
["■設定補助シート"]
[]
[]
[]
[]
[]
[]
[]
[]
["■説明"]
["ヘッダー名（UIで表示されるモノは参考リンクあり）","概要","設定値","備考"]
[{"$f":"HYPERLINK(\"#A\"&ROW($A$23),\"サブサービスキー\")","v":"サブサービスキー"},"サブサービスを指すキー","半角英数字、ハイフン、アンダーバー","例）「dateManageService」\nここで指定したキーを持つサービスが子サービスになる\n子サービスにするサービスも、事前にInfonovaに登録が必要"]
[{"$f":"HYPERLINK(\"#A\"&ROW($A$69),SUBSTITUTE($A69,\"■\",\"\"))","v":"設定下限"},"購入画面にて追加できるサブサービスの最低数","数字","例）「1」\n購入画面で追加されたサブサービスの数が、\n設定下限と一致すると、\nサブサービスの削除ボタンが非表示になる\n購入時には、この値の数のサブサービスが申込時の初期表示される\n使わない可能性のあるサブサービスの場合は「0」に設定"]
[{"$f":"HYPERLINK(\"#A\"&ROW($A$120),SUBSTITUTE($A120,\"■\",\"\"))","v":"設定上限"},"購入画面にて追加できるサブサービスの最大数","数字","例）「10」"]
[]
[]
["■サブサービスキー情報",{"$f":"HYPERLINK(\"#A\"&ROW($A$16),\"戻る\")","v":"戻る"}]
[]
[]
[]
[]
[]
[]
[]
[]
[]
[]
[]
[]
[]
[]
[]
[]
[]
[]
[]
[]
[]
[]
[]
[]
[]
[]
[]
[]
[]
[]
[]
[]
[]
[]
[]
[]
[]
[]
[]
[]
[]
[]
[]
[]
[]
["■設定下限",{"$f":"HYPERLINK(\"#A\"&ROW($A$16),\"戻る\")","v":"戻る"}]
[]
[]
[]
[]
[]
[]
[]
[]
[]
[]
[]
[]
[]
[]
[]
[]
[]
[]
[]
[]
[]
[]
[]
[]
[]
[]
[]
[]
[]
[]
[]
[]
[]
[]
[]
[]
[]
[]
[]
[]
[]
[]
[]
[]
[]
[]
[]
[]
[]
[]
["■設定上限",{"$f":"HYPERLINK(\"#A\"&ROW($A$16),\"戻る\")","v":"戻る"}]

{"sheet":"【5.関連サービス（任意）】説明","index":6,"n_rows":418,"n_cols":4,"rows_kept":418,"cut":false,"hidden":false,"merged":[]}
["■関連サービスの設定"]
["同一商品内の複数のサービス間で、特性に入力した値を提供することができる"]
["その設定を5.関連サービス（任意）にて行う"]
[]
["■設定補助シート（サービス1）"]
[]
[]
[]
[]
[]
[]
[]
[]
[]
[]
[]
[]
[]
[]
[]
[]
[]
[]
[]
[]
[]
[]
["■設定補助シート（サービス2）"]
[]
[]
[]
[]
[]
[]
[]
[]
[]
[]
[]
[]
[]
[]
[]
[]
[]
[]
[]
[]
[]
["■設定補助シート（サービス3）"]
[]
[]
[]
[]
[]
[]
[]
[]
[]
[]
[]
[]
[]
[]
[]
[]
[]
[]
[]
[]
[]
["■説明"]
["ヘッダー名（UIで表示されるモノは参考リンクあり）","概要","設定値","備考"]
["特性表示名","1.サービス特性設定（必須）から自動で転記される特性表示名","1.サービス特性設定（必須）から自動転記"]
["特性キー情報","1.サービス特性設定（必須）から自動で転記される特性キー","1.サービス特性設定（必須）から自動転記"]
["関連サービスキー情報","関連サービスを指すキー","半角英数字、ハイフン、アンダーバー","例）「cap1]\n「提供する」側と「提供される」側で同一のキーを設定する\n「提供する」と「提供される」は、\n同一の関連サービスキー情報を持つ関連サービスの中から、\n提供キー情報が一致する特性をやりとりする"]
[{"$f":"HYPERLINK(\"#A\"&ROW($A$89),SUBSTITUTE($A87,\"■\",\"\"))","v":"表示名"},"UI上での関連サービスの表示名","文字、数字、記号","例）「契約番号」"]
[{"$f":"HYPERLINK(\"#A\"&ROW($A$89),SUBSTITUTE($A89,\"■\",\"\"))","v":"関連サービスとしての役割"},"特性を提供する側か、提供される側かを選択する","提供する\n提供される","「提供する」と「提供される」は、\n同一の関連サービスキー情報を持つ関連サービスの中から、\n提供キー情報が一致する特性をやりとりする\n※「提供される」の場合は、「提供する」側で設定した値が自動連携されるため値の変更は不可となる。"]
[{"$f":"HYPERLINK(\"#A\"&ROW($A$330),SUBSTITUTE($A330,\"■\",\"\"))","v":"他のサービスへの提供"},"同じ関連サービスキーを使っている関連サービスへの提供の可不可","許可する\n許可しない","提供される側のみ設定必須\n複数の関連サービスが同一の関連サービスからの提供を待ち受ける際に、\n「許可しない」を選択した関連サービスが存在する場合、\nそのサービスにのみ提供が実行される"]
[{"$f":"HYPERLINK(\"#A\"&ROW($A$199),SUBSTITUTE($A199,\"■\",\"\"))","v":"プロビジョニング開始を待機する"},"特性が全て入力されるまでプロビジョニングの開始を待機する","提供サービス特性の入力を待たない\n提供サービス特性の入力を待つ","提供される側のみ設定必須\n「提供サービス特性の入力を待つを選択した関連サービスは、\n提供される予定の全ての特性の要素が提供する側で入力されるまで、\nプロビジョニングの開始を待機する"]
[{"$f":"HYPERLINK(\"#A\"&ROW($A$89),SUBSTITUTE($A88,\"■\",\"\"))","v":"対象"},"関連サービスの対象となる特性を選択する","〇","〇を入力した特性だけが提供の対象となる\n1つの関連サービスの中で複数選択可能"]
[{"$f":"HYPERLINK(\"#A\"&ROW($A$172),SUBSTITUTE($A172,\"■\",\"\"))","v":"提供キー情報"},"提供する（される）特性につける提供用のキー情報","半角英数字、ハイフン、アンダーバー","例）「bpNumberCap]\n「提供する」側と「提供される」側で同一のキーを設定する\n「提供する」と「提供される」は、\n同一の関連サービスキー情報を持つ関連サービスの中から、\n提供キー情報が一致する特性をやりとりする"]
[{"$f":"HYPERLINK(\"#A\"&ROW($A$418),SUBSTITUTE($A414,\"■\",\"\"))","v":"制限値"},"制限を使用する際の比較対象となる値","文字、数字、記号","制限が「に等しい」「のいずれかと等しい」以外の場合は数字のみ使用可能"]
[{"$f":"HYPERLINK(\"#A\"&ROW($A$418),SUBSTITUTE($A418,\"■\",\"\"))","v":"制限"},"提供される特性の条件","に等しい\nより大きい\n以上\nより小さい\n以下\nのいずれかと等しい","提供する側で入力された値が、\n制限と制限値からなる条件に一致する場合のみ提供を受けつける"]
[]
[]
["■表示名"]
["■対象"]
["■関連サービスとしての役割",{"$f":"HYPERLINK(\"#A\"&ROW($A$72),\"戻る\")","v":"戻る"}]
[]
[]
[]
[]
[]
[]
[]
[]
[]
[]
[]
[]
[]
[]
[]
[]
[]
[]
[]
[]
[]
[]
[]
[]
[]
[]
[]
[]
[]
[]
[]
[]
[]
[]
[]
[]
[]
[]
[]
[]
[]
[]
[]
[]
[]
[]
[]
[]
[]
[]
[]
[]
[]
[]
[]
[]
[]
[]
[]
[]
[]
[]
[]
[]
[]
[]
[]
[]
[]
[]
[]
[]
[]
[]
[]
[]
[]
[]
[]
[]
[]
[]
["■提供キー情報",{"$f":"HYPERLINK(\"#A\"&ROW($A$72),\"戻る\")","v":"戻る"}]
[]
[]
[]
[]
[]
[]
[]
[]
[]
[]
[]
[]
[]
[]
[]
[]
[]
[]
[]
[]
[]
[]
[]
[]
[]
[]
["■プロビジョニング開始を待機する",{"$f":"HYPERLINK(\"#A\"&ROW($A$72),\"戻る\")","v":"戻る"}]
[]
[]
[]
[]
[]
[]
[]
[]
[]
[]
[]
[]
[]
[]
[]
[]
[]
[]
[]
[]
[]
[]
[]
[]
[]
[]
[]
[]
[]
[]
[]
[]
[]
[]
[]
[]
[]
[]
[]
[]
[]
[]
[]
[]
[]
[]
[]
[]
[]
[]
[]
[]
[]
[]
[]
[]
[]
[]
[]
[]
[]
[]
[]
[]
[]
[]
[]
[]
[]
[]
[]
[]
[]
[]
[]
[]
[]
[]
[]
[]
[]
[]
[]
[]
[]
[]
[]
[]
[]
[]
[]
[]
[]
[]
[]
[]
[]
[]
[]
[]
[]
[]
[]
[]
[]
[]
[]
[]
[]
[]
[]
[]
[]
[]
[]
[]
[]
[]
[]
[]
[]
[]
[]
[]
[]
[]
[]
[]
[]
[]
["■他のサービスへの提供",{"$f":"HYPERLINK(\"#A\"&ROW($A$72),\"戻る\")","v":"戻る"}]
[]
[]
[]
[]
[]
[]
[]
[]
[]
[]
[]
[]
[]
[]
[]
[]
[]
[]
[]
[]
[]
[]
[]
[]
[]
[]
[]
[]
[]
[]
[]
[]
[]
[]
[]
[]
[]
[]
[]
[]
[]
[]
[]
[]
[]
[]
[]
[]
[]
[]
[]
[]
[]
[]
[]
[]
[]
[]
[]
[]
[]
[]
[]
[]
[]
[]
[]
[]
[]
[]
[]
[]
[]
[]
[]
[]
[]
[]
[]
[]
[]
[]
[]
["■制限値"]
[]
[]
[]
["■制限",{"$f":"HYPERLINK(\"#A\"&ROW($A$72),\"戻る\")","v":"戻る"}]

{"sheet":"【6.パラメータ（任意）】説明","index":7,"n_rows":112,"n_cols":4,"rows_kept":112,"cut":false,"hidden":false,"merged":[]}
["■パラメータの設定"]
["オーダプロセスでのみ使用可能なカスタムパラメータ"]
["他システム連携のためだけに使いたい情報がある場合に、このパラメータを使用して情報を連携することができる。"]
["その設定を6.パラメータ（任意）にて行う"]
[]
["■設定補助シート"]
[]
[]
[]
[]
[]
[]
[]
[]
[]
[]
[]
[]
[]
[]
[]
[]
[]
[]
["■説明"]
["ヘッダー名（UIで表示されるモノは参考リンクあり）","概要","設定値","備考"]
["未定義パラメータの許容","定義していないパラメータがオーダに含まれる場合に、それを許容するか","許容する\n許容しない","定義していないパラメータを含むオーダは、APIからのみ作成可能\n※UIからは不可"]
["パラメータキー情報","パラメータを指すキー","半角英数字","例）「serial」"]
[{"$f":"HYPERLINK(\"#A\"&ROW($A$36),SUBSTITUTE($A36,\"■\",\"\"))","v":"パラメータ表示名"},"UI上で表示されるパラメータの名称","文字、数字、記号","例）「シリアル番号」"]
[{"$f":"HYPERLINK(\"#A\"&ROW($A$71),SUBSTITUTE($A71,\"■\",\"\"))","v":"入力の必須・任意"},"パラメータの入力の必須任意","必須\n任意","必須を選択した場合、未入力だとエラーメッセージが表示される"]
[{"$f":"HYPERLINK(\"#A\"&ROW($A$112),SUBSTITUTE($A110,\"■\",\"\"))","v":"入力チェック"},"特性の要素に入力する値の入力規則","半角文字\n全角文字\n全角カナ\n半角数字\n半角英字\n半角英数\n半角英数記号\n半角文字（桁制限あり）\n全角文字（桁制限あり）\n全角カナ（桁制限あり）\n半角数字（桁制限あり）\n半角英字（桁制限あり）\n半角英数（桁制限あり）\n半角英数記号（桁制限あり）\n郵便番号（ハイフンあり）\n郵便番号（ハイフンなし）\neメールアドレス","選択した形式の入力のみを受け付ける\n桁制限ありの項目を選択する場合は桁数チェックも入力が必要\n任意の正規表現を追加可能"]
[{"$f":"HYPERLINK(\"#A\"&ROW($A$112),SUBSTITUTE($A111,\"■\",\"\"))","v":"桁数チェック（下限）"},"特性の要素に入力する値の桁数の下限","数字","例）「16」\n入力チェックで「桁数制限あり」の項目を選択した場合に使用する\n未入力の場合はxmlでは1が入力されて、下限は1に設定される"]
["桁数チェック（上限）","特性の要素に入力する値の桁数の上限","数字","例）「16」\n入力チェックで「桁数制限あり」の項目を選択した場合に使用する\n未入力の場合はxmlでは空欄になり、上限は設定なしとなる"]
[]
[]
["■パラメータ表示名",{"$f":"HYPERLINK(\"#A\"&ROW($A$25),\"戻る\")","v":"戻る"}]
[]
[]
[]
[]
[]
[]
[]
[]
[]
[]
[]
[]
[]
[]
[]
[]
[]
[]
[]
[]
[]
[]
[]
[]
[]
[]
[]
[]
[]
[]
[]
[]
[]
[]
["■入力の必須・任意",{"$f":"HYPERLINK(\"#A\"&ROW($A$25),\"戻る\")","v":"戻る"}]
[]
[]
[]
[]
[]
[]
[]
[]
[]
[]
[]
[]
[]
[]
[]
[]
[]
[]
[]
[]
[]
[]
[]
[]
[]
[]
[]
[]
[]
[]
[]
[]
[]
[]
[]
[]
[]
[]
["■入力チェック"]
["■桁数チェック（下限）"]
["■桁数チェック（上限）",{"$f":"HYPERLINK(\"#A\"&ROW($A$25),\"戻る\")","v":"戻る"}]

{"sheet":"【7.特性属性（任意）】説明","index":8,"n_rows":28,"n_cols":4,"rows_kept":28,"cut":false,"hidden":false,"merged":[]}
["■特性属性の設定"]
["特性に設定する属性"]
["「1.サービス特性設定（必須）」シートの「サービス属性設定」とは異なり、こちらはサービス特性に属性を設定する"]
["7.特性属性（任意）にて行う"]
[]
["■設定補助シート"]
[]
[]
[]
[]
[]
[]
[]
[]
[]
[]
[]
[]
[]
[]
[]
["■説明"]
["ヘッダー名（UIで表示されるモノは参考リンクあり）","概要","設定値","備考"]
["特性キー情報","1.サービス特性設定（必須）から自動で転記される特性キー情報","1.サービス特性設定（必須）から自動転記"]
["特性属性キー情報","特性属性を指すキー","半角英数字","例）「targetId」\n事前にテナントに設定したキーのみが使用可能"]
["特性属性設定値","特性属性に設定する値","文字、数字、記号","例）「123456789」\nUI上には表示されない\n属性値として設定だけするものであり、ProductOrderingのAPI等にて利用される\nサービスそのものへの属性は「1.サービス特性設定（必須）」シートで設定"]
["特性属性適用開始日","特性属性の適用を開始する日付","yyyy-mm-dd","未入力の場合は、サービスアップロードと同時に適用される"]
["特性属性適用終了日","特性属性の適用を終了する日付","yyyy-mm-dd","未入力の場合は設定なし"]

{"sheet":"【入力チェックシート】説明","index":9,"n_rows":33,"n_cols":4,"rows_kept":33,"cut":false,"hidden":false,"merged":[]}
["■入力チェック"]
["他のシートにて使用する入力チェック用に正規表現の設定をするシート"]
["デフォルトでいくつかの正規表現が用意されているが追加が可能"]
[]
["■設定補助シート"]
[]
[]
[]
[]
[]
[]
[]
[]
[]
[]
[]
[]
[]
[]
[]
[]
[]
[]
[]
[]
[]
[]
["■説明"]
["ヘッダー名（UIで表示されるモノは参考リンクあり）","概要","設定値","備考"]
["プルダウン","設定補助シート内の「入力チェック」の項目に表示されるプルダウンの名称",null,"例）「半角数字」\n追加する場合は、一番下の項目の次の行に間を空けずに入力する"]
["正規表現","「入力チェック」項目で選択した際に適用される正規表現",null,"例）「^[0-9]*」\n追加する場合は、一番下の項目の次の行に間を空けずに入力する"]
[]
["■項目追加方法"]